bitfinex-derivatives/quotes_ETHF0:USTF0_20250824
["timestamp","ask_amount","ask_price","bid_price","bid_amount"]
[1756069448792,3.2078,4769.5,4769.2,3.68464434]
[1756069448987,3.5811,4769.4,4769.2,2.59184434]
[1756069449195,3.5811,4769.2,4769.1,22.611]
[1756069449396,3.5811,4769.1,4769.0,2.59184434]
[1756069449696,3.5811,4768.9,4768.6,22.555]
[1756069449895,1.4955,4768.7,4768.6,22.555]
[1756069450099,3.5811,4768.5,4768.2,25.14384434]
[1756069450291,3.5811,4768.3,4768.2,22.552]
[1756069450687,2.6003,4768.3,4768.2,22.552]
[1756069451294,3.5811,4768.3,4768.2,22.552]
[1756069452799,0.9808,4768.3,4767.3,2.59184434]
[1756069452999,3.5811,4767.6,4767.4,22.489]
[1756069453302,3.5811,4767.5,4767.4,22.489]
[1756069453594,3.2078,4767.8,4767.4,24.5606]
[1756069453800,1.4955,4768.8,4767.8,1.0928]
[1756069453994,3.2078,4769.1,4768.0,2.0716]
[1756069454199,3.2078,4769.1,4768.1,0.9788]
[1756069454603,3.2078,4769.1,4768.4,1.8796858]
[1756069454796,3.2078,4769.1,4768.5,22.49]
[1756069455196,3.2078,4769.1,4768.5,24.3696858]
[1756069455496,5.8081,4769.1,4768.6,1.8796858]
[1756069455796,2.0856,4769.0,4768.6,1.8796858]
[1756069455993,2.6003,4768.8,4768.6,2.8584858]
[1756069456800,0.9808,4769.0,4768.6,0.9788]
[1756069457097,3.5811,4768.6,4768.0,4.47153014]
[1756069457404,3.2312,4767.9,4766.0,3.2078]
[1756069457599,1.1048,4769.9,4767.9,0.7677]
[1756069457797,2.0856,4769.9,4769.8,3.2078]
[1756069457995,2.0856,4769.9,4769.8,0.9633]
[1756069458308,2.0856,4769.9,4769.3,18.479]
[1756069458603,2.0856,4770.8,4769.7,3.2078]
[1756069458902,0.9808,4770.5,4769.7,3.2078]
[1756069459099,0.9808,4770.3,4769.7,3.2078]
[1756069459302,0.9808,4770.1,4769.2,3.2078]
[1756069459504,1.1048,4770.0,4769.2,3.2078]
[1756069459700,3.5811,4769.8,4769.2,3.2078]
[1756069460006,1.1048,4769.7,4768.7,3.2078]
[1756069460199,1.4955,4769.4,4768.7,3.2078]
[1756069460402,2.4763,4770.0,4769.2,3.2078]
[1756069460601,2.4763,4770.0,4768.8,1.5397]
[1756069460794,1.1048,4770.2,4769.8,3.6113]
[1756069460996,1.4955,4770.6,4769.7,3.2078]
[1756069461304,3.2078,4770.1,4768.7,3.2078]
[1756069461500,1.1048,4769.9,4768.7,3.2078]
[1756069461710,3.2078,4770.1,4768.7,3.2078]
[1756069461900,3.5811,4769.3,4767.2,4.7475]
[1756069462102,3.5811,4769.1,4767.4,22.58]
[1756069462404,3.5811,4769.3,4767.4,22.58]
[1756069462601,3.5811,4769.3,4767.7,3.2078]
[1756069462902,2.0856,4769.0,4767.7,3.2078]
[1756069463108,2.0856,4769.0,4768.3,2.5185]
[1756069463803,3.2078,4769.4,4768.2,3.2078]
[1756069464008,2.4763,4768.7,4768.2,3.2078]
[1756069464207,3.2078,4768.9,4766.9,3.69460009]
[1756069464403,3.2078,4768.4,4766.9,3.69460009]
[1756069464605,3.5811,4767.7,4766.7,3.2078]
[1756069464900,1.4955,4767.5,4766.7,3.2078]
[1756069465102,3.5811,4767.4,4766.7,3.2078]
[1756069465302,2.6003,4767.1,4766.7,3.2078]
[1756069465496,3.5811,4767.0,4766.0,3.2078]
[1756069466110,3.5811,4767.0,4766.0,4.7475]
[1756069467105,2.0856,4767.0,4766.1,2.0716]
[1756069468797,3.2078,4767.5,4766.5,3.2078]
[1756069469000,3.2078,4767.5,4766.6,3.7403]
[1756069469500,3.2078,4767.5,4766.5,3.2078]
[1756069469699,3.7285,4767.4,4766.5,3.2078]
[1756069469904,3.2078,4767.5,4766.5,3.2078]
[1756069470301,2.7085,4767.3,4766.5,3.2078]
[1756069470506,3.7285,4767.3,4766.5,3.2078]
[1756069470707,1.0867,4767.1,4766.5,3.2078]
[1756069471407,1.0867,4767.1,4766.4,3.2078]
[1756069473800,1.0867,4767.4,4766.5,2.59]
[1756069474312,3.7285,4767.0,4766.4,3.2078]
[1756069474608,3.7285,4767.0,4765.7,1.1503]
[1756069474609,3.2078,4766.7,4765.2,1.6301]
[1756069474910,1.6218,4766.4,4765.2,1.6301]
[1756069475107,1.0867,4766.3,4765.2,1.6301]
[1756069475311,1.02,4766.2,4765.2,1.6301]
[1756069477311,1.0867,4766.3,4765.4,1.6301]
[1756069477511,1.0867,4766.3,4765.6,1.6301]
[1756069477706,3.2078,4766.7,4765.7,0.9599]
[1756069478009,1.02,4766.8,4765.8,1.6301]
[1756069478712,1.02,4766.8,4765.9,1.1503]
[1756069478911,1.02,4766.3,4764.0,2.59]
[1756069479113,2.6418,4764.3,4763.2,3.2078]
[1756069479311,1.0867,4764.4,4761.7,0.20515782]
[1756069479312,1.02,4763.2,4761.9,1.6301]
[1756069479608,3.7285,4762.7,4761.7,3.41295782]
[1756069479815,3.7285,4762.7,4760.0,0.9599]
[1756069479816,3.2078,4762.3,4760.6,3.2078]
[1756069480115,0.6312,4761.2,4759.7,0.01179158]
[1756069480611,1.6218,4761.1,4758.8,1.1503]
[1756069480910,22.304,4761.4,4758.0,2.7804]
[1756069480911,1.6218,4760.9,4758.0,2.7804]
[1756069481110,1.6218,4758.9,4758.0,1.1503]
[1756069481306,3.2078,4758.5,4756.5,3.2078]
[1756069481513,3.2078,4759.0,4757.8,2.7804]
[1756069481707,3.2078,4758.5,4757.2,3.2078]
[1756069481909,3.2078,4758.5,4757.4,2.7804]
[1756069482110,3.2078,4758.5,4757.5,2.1102]
[1756069482314,3.2078,4758.5,4757.9,2.1102]
[1756069482516,3.2078,4758.5,4757.6,3.2078]
[1756069482818,4.8296,4760.0,4758.3,3.7403]
[1756069483109,3.2078,4759.1,4758.1,3.2078]
[1756069483310,3.2078,4759.7,4758.4,2.77303825]
[1756069483516,3.2078,4759.7,4759.0,0.9599]
[1756069483714,3.2078,4759.7,4759.1,1.6301]
[1756069483919,3.2078,4759.2,4758.5,1.1503]
[1756069484217,3.2078,4758.6,4758.0,2.7804]
[1756069484413,3.2078,4758.6,4758.0,1.1503]
[1756069485412,3.2078,4758.1,4756.0,0.9599]
[1756069485614,3.2078,4756.7,4756.0,0.9599]
[1756069486021,3.2078,4756.1,4754.4,3.2078]
[1756069486312,3.2078,4756.6,4755.4,0.9599]
[1756069487418,0.2147452,4756.8,4756.0,3.2078]
[1756069487718,3.2078,4758.1,4754.9,0.03659612]
[1756069487719,3.2078,4758.1,4756.9,3.7403]
[1756069488019,3.2078,4758.1,4757.4,2.1102]
[1756069488215,3.2078,4758.1,4757.2,3.7403]
[1756069488416,3.2078,4758.1,4757.4,3.7403]
[1756069488616,3.2078,4758.1,4757.5,3.7403]
[1756069488928,3.2078,4758.1,4757.7,2.59]
[1756069489221,3.2078,4758.1,4758.0,2.1102]
[1756069489420,3.2078,4758.1,4758.0,3.7403]
[1756069490418,1.6218,4759.6,4758.2,2.7804]
[1756069490723,3.2078,4759.7,4758.4,1.6301]
[1756069491024,3.2078,4759.7,4757.5,30.255]
[1756069491025,3.2078,4759.7,4758.9,0.9599]
[1756069491316,3.2078,4759.7,4759.0,1.1503]
[1756069491518,3.2078,4759.7,4758.7,3.2078]
[1756069491918,3.2078,4759.7,4758.8,2.73430244]
[1756069492117,3.2078,4759.7,4758.9,3.7403]
[1756069492321,4.8296,4760.9,4759.6,2.1102]
[1756069492622,4.8296,4760.9,4759.5,1.6301]
[1756069492623,1.6218,4760.9,4760.0,1.6301]
[1756069492917,30.255,4762.0,4758.1,1.6301]
[1756069492918,1.0867,4759.8,4758.1,1.6301]
[1756069493112,3.2078,4759.6,4757.5,2.7804]
[1756069493421,1.6218,4758.4,4757.5,2.7804]
[1756069493618,4.8296,4759.1,4757.8,1.6301]
[1756069493812,2.6418,4759.9,4758.5,3.2078]
[1756069494018,2.6418,4759.9,4758.6,3.7403]
[1756069494219,4.2945,4760.7,4759.0,3.2078]
[1756069494422,4.2945,4760.7,4759.5,3.2078]
[1756069494619,4.2945,4760.7,4759.7,0.9599]
[1756069495822,3.2078,4760.7,4760.0,3.2078]
[1756069496218,3.2078,4760.7,4760.1,1.1503]
[1756069496415,1.02,4761.1,4760.2,2.59]
[1756069496719,3.2078,4761.4,4760.2,2.73572206]
[1756069496720,1.02,4761.4,4760.2,2.73572206]
[1756069496917,2.1067,4761.2,4760.0,2.59]
[1756069497117,2.1067,4761.2,4760.1,3.2078]
[1756069497521,1.6218,4761.3,4760.7,3.2078]
[1756069497718,1.6218,4761.3,4760.4,3.2078]
[1756069497924,2.1067,4761.8,4760.4,3.2078]
[1756069498726,2.1067,4761.8,4760.5,1.0035]
[1756069499024,1.5841,4761.7,4760.5,1.0035]
[1756069499525,2.1067,4761.8,4760.7,1.0035]
[1756069499824,3.7413,4761.8,4760.8,2.6251]
[1756069500326,2.7027,4762.6,4761.6,3.6286]
[1756069500526,2.6227,4763.3,4762.2,2.5011]
[1756069500925,2.6227,4763.3,4762.2,1.0035]
[1756069501124,4.3264,4763.2,4762.2,1.0035]
[1756069501325,1.5841,4762.6,4761.6,2.5011]
[1756069501923,1.0386,4762.1,4761.3,1.1275]
[1756069502122,1.1186,4762.0,4761.1,3.2078]
[1756069502423,1.5841,4761.3,4759.3,3.6286]
[1756069502722,1.1186,4761.4,4759.3,3.6286]
[1756069502723,3.2078,4759.9,4759.3,3.6286]
[1756069503223,3.2078,4759.4,4758.7,1.1275]
[1756069503423,3.2078,4759.9,4758.7,1.1275]
[1756069503618,3.2078,4759.9,4759.0,1.1275]
[1756069503820,3.2078,4760.4,4759.1,2.6251]
[1756069504028,3.2078,4759.9,4759.1,3.6286]
[1756069504719,1.0386,4759.3,4758.4,1.1275]
[1756069505325,3.2078,4758.7,4758.4,1.1275]
[1756069505528,1.5841,4758.6,4757.9,1.4976]
[1756069505831,5.8305,4759.4,4758.3,1.1275]
[1756069506023,4.2464,4758.9,4758.3,1.1275]
[1756069506218,0.56191126,4758.8,4758.3,1.1275]
[1756069506423,2.14601126,4758.7,4758.3,1.1275]
[1756069506625,1.5841,4758.7,4758.3,1.1275]
[1756069506819,1.0386,4758.6,4758.4,1.1275]
[1756069507020,1.0386,4758.5,4757.3,3.2078]
[1756069507219,1.5841,4757.1,4755.5,0.10057777]
[1756069507425,1.1186,4757.3,4755.7,1.1275]
[1756069507426,1.0386,4756.3,4755.7,1.1275]
[1756069507730,2.6227,4756.1,4755.5,0.10057777]
[1756069507930,2.6227,4755.9,4755.2,1.1275]
[1756069508131,1.5841,4755.9,4755.2,1.1275]
[1756069508434,3.2078,4756.4,4755.6,3.6286]
[1756069508723,2.6227,4757.3,4755.9,1.0035]
[1756069508929,2.6227,4757.3,4755.8,1.4976]
[1756069508930,0.54415693,4757.2,4756.1,4.2113]
[1756069509131,0.54415693,4757.1,4756.3,1.1275]
[1756069509331,0.54415693,4757.0,4756.3,1.1275]
[1756069509631,0.54415693,4756.9,4756.3,1.1275]
[1756069509828,1.5841,4757.3,4756.3,1.1275]
[1756069510030,1.0386,4757.1,4755.6,5.7089]
[1756069510233,1.0386,4756.6,4755.0,2.131]
[1756069510533,3.2078,4755.7,4755.0,2.131]
[1756069510736,0.54277192,4755.6,4755.0,1.1275]
[1756069511027,0.54277192,4755.5,4755.1,2.131]
[1756069511231,3.2078,4755.7,4755.6,1.1275]
[1756069511433,3.2078,4756.4,4755.6,3.6286]
[1756069511628,0.54235093,4756.3,4755.6,3.6286]
[1756069511823,0.54235093,4756.2,4755.6,3.6286]
[1756069512028,0.54235093,4756.1,4755.8,1.1275]
[1756069512229,3.2078,4756.4,4755.9,1.1275]
[1756069512430,0.54208657,4756.3,4755.7,3.6286]
[1756069512637,3.2078,4756.4,4756.0,2.5011]
[1756069512833,3.2078,4756.4,4755.7,1.1275]
[1756069513134,0.54198008,4756.3,4755.7,1.1275]
[1756069513337,3.2078,4756.4,4755.8,1.0035]
[1756069513635,3.2078,4756.4,4755.3,3.2078]
[1756069513830,3.2078,4756.4,4756.3,3.6286]
[1756069514432,3.2078,4757.2,4756.3,1.1275]
[1756069514735,3.2078,4756.7,4755.7,1.0035]
[1756069514934,2.12568452,4756.6,4755.6,1.4976]
[1756069515136,1.0386,4756.5,4755.6,1.4976]
[1756069515437,3.2078,4756.2,4755.5,1.1275]
[1756069516640,3.2078,4756.2,4755.2,3.2078]
[1756069516831,3.2078,4756.2,4756.0,1.1275]
[1756069517036,3.2078,4756.2,4756.1,3.6286]
[1756069517736,3.2078,4757.2,4756.2,1.1275]
[1756069517932,3.2078,4757.2,4756.3,1.0035]
[1756069518137,3.2078,4757.2,4756.5,1.4976]
[1756069518333,1.5841,4757.1,4756.4,1.1275]
[1756069518529,3.2078,4756.7,4755.8,1.4976]
[1756069518939,3.2078,4756.2,4755.8,1.4976]
[1756069519241,3.2078,4756.2,4755.4,1.0035]
[1756069519840,3.2078,4756.2,4755.7,1.1275]
[1756069520036,3.2078,4756.2,4755.3,3.6286]
[1756069520232,3.2078,4756.2,4755.4,1.1275]
[1756069520638,3.2078,4756.2,4755.6,3.6286]
[1756069520839,3.2078,4756.8,4755.8,2.6251]
[1756069521144,3.2078,4756.8,4755.9,1.1275]
[1756069521340,3.2078,4756.7,4755.9,1.0035]
[1756069521546,1.5841,4756.5,4755.8,1.1275]
[1756069521842,3.2078,4756.2,4755.9,1.1275]
[1756069522040,3.2078,4756.2,4755.1,1.4976]
[1756069522041,3.2078,4756.2,4756.1,3.6286]
[1756069522443,3.2078,4756.8,4756.3,1.1275]
[1756069522643,3.2078,4756.8,4756.5,3.6286]
[1756069522842,3.2078,4756.8,4756.7,1.1275]
[1756069523143,3.2078,4756.8,4756.6,1.4976]
[1756069523144,3.2078,4756.8,4756.1,1.1275]
[1756069524143,3.2078,4756.8,4755.7,3.2078]
[1756069524144,1.0386,4756.5,4755.7,3.2078]
[1756069524641,1.0386,4756.5,4755.3,1.1275]
[1756069524837,3.2078,4756.3,4755.3,1.1275]
[1756069525043,3.2078,4755.6,4755.4,1.1275]
[1756069525244,3.2078,4755.6,4755.2,1.1275]
[1756069525644,2.6227,4755.4,4754.8,3.2078]
[1756069526344,3.2078,4755.6,4754.9,1.1275]
[1756069527137,3.2078,4755.6,4754.9,2.6251]
[1756069528744,1.499,4756.5,4755.4,3.7235]
[1756069528946,1.499,4756.5,4755.5,1.1113]
[1756069529147,3.2078,4756.7,4755.6,3.7235]
[1756069529345,3.2078,4756.7,4755.8,1.0382]
[1756069529545,3.2078,4756.7,4755.9,1.1113]
[1756069529947,3.2078,4756.7,4756.1,2.1495]
[1756069530452,3.2078,4756.7,4756.3,3.7235]
[1756069530744,3.2078,4756.7,4756.4,3.7235]
[1756069530950,3.2078,4756.7,4755.9,1.574]
[1756069532046,3.2078,4756.7,4756.1,2.1495]
[1756069532252,3.2078,4756.7,4756.2,1.574]
[1756069532552,4.7068,4756.7,4756.5,1.1113]
[1756069532748,3.2078,4757.7,4756.6,3.7235]
[1756069533045,3.2078,4757.7,4756.9,1.1113]
[1756069534251,1.0286,4757.6,4756.9,1.1113]
[1756069534653,3.2078,4757.7,4756.9,1.1113]
[1756069534951,3.2078,4757.7,4757.0,1.0382]
[1756069535148,4.2364,4758.2,4757.5,1.574]
[1756069535349,3.2078,4759.3,4758.2,2.1495]
[1756069535552,3.2078,4760.0,4758.8,1.574]
[1756069535752,3.2078,4760.0,4758.9,2.1495]
[1756069536557,3.2078,4760.0,4759.0,4.3191]
[1756069536856,2.5276,4760.3,4759.3,2.6122]
[1756069537053,1.499,4760.3,4759.4,1.1113]
[1756069537253,1.499,4760.3,4759.4,3.77988518]
[1756069537749,3.2078,4760.5,4759.7,1.1113]
[1756069537957,3.2078,4761.0,4760.1,3.2078]
[1756069538151,3.2078,4761.0,4760.2,2.1495]
[1756069538454,1.499,4761.1,4760.2,3.7235]
[1756069539552,1.0286,4761.0,4759.6,3.7235]
[1756069539750,1.0286,4760.2,4759.6,1.1113]
[1756069539952,1.0286,4760.2,4759.4,30.275]
[1756069539953,1.499,4760.3,4759.5,1.0382]
[1756069540150,4.7068,4760.3,4759.6,1.1113]
[1756069541657,1.0286,4760.0,4759.0,27.0298]
[1756069541858,1.499,4759.4,4758.4,0.11683502]
[1756069542156,1.499,4759.4,4758.3,1.1113]
[1756069542157,1.0286,4759.1,4758.3,1.1113]
[1756069542464,1.0286,4758.9,4758.0,30.268]
[1756069542755,1.1285,4758.4,4756.8,1.1113]
[1756069542954,2.5276,4758.3,4756.8,1.1113]
[1756069543156,1.499,4757.9,4756.8,1.1113]
[1756069543350,1.0286,4757.8,4756.8,1.1113]
[1756069544057,1.499,4757.5,4756.0,1.1113]
[1756069544251,1.499,4757.2,4756.0,1.22717248]
[1756069544555,3.2078,4757.0,4756.0,1.22717248]
[1756069544957,1.499,4756.8,4756.0,1.22717248]
[1756069545551,2.6275,4756.8,4756.0,1.1113]
[1756069545755,3.2078,4756.5,4756.0,1.1113]
[1756069546147,2.5276,4756.2,4756.0,1.1113]
[1756069546347,3.2078,4756.5,4756.3,2.6122]
[1756069546552,3.2078,4757.0,4755.7,30.268]
[1756069546757,3.2078,4757.0,4755.9,3.7235]
[1756069546955,3.2078,4757.0,4756.1,1.0382]
[1756069547458,3.2078,4757.0,4756.2,1.1113]
[1756069547959,1.0286,4756.8,4756.2,1.1113]
[1756069548145,2.5276,4756.4,4755.7,30.268]
[1756069549356,1.499,4756.4,4755.8,1.1113]
[1756069550459,1.499,4756.1,4755.9,1.1113]
[1756069550649,3.2078,4756.5,4755.9,1.1113]
[1756069551555,3.2078,4757.0,4756.0,2.78084207]
[1756069551759,3.2078,4757.0,4756.3,1.1113]
[1756069551961,3.2078,4757.0,4756.4,22.074]
[1756069552158,1.499,4757.3,4756.5,1.1113]
[1756069553257,1.0286,4757.9,4756.5,1.1113]
[1756069553258,1.499,4757.9,4757.3,2.1495]
[1756069553452,3.2078,4758.3,4757.5,2.1495]
[1756069553659,3.2078,4758.9,4757.8,4.7818]
[1756069553862,3.2078,4760.0,4758.9,3.7235]
[1756069554061,3.2078,4760.0,4759.0,22.075]
[1756069555062,3.2078,4760.0,4759.1,1.1113]
[1756069555560,3.2078,4759.6,4758.2,4.3191]
[1756069555766,1.3809,4759.0,4757.6,31.3883]
[1756069555968,2.8799,4759.0,4757.7,1.0382]
[1756069556160,2.6275,4759.0,4757.9,1.1113]
[1756069556355,1.499,4758.1,4756.8,1.1113]
[1756069556556,1.499,4757.7,4756.8,1.1113]
[1756069556755,1.499,4757.7,4756.5,1.574]
[1756069556964,1.3809,4757.6,4756.5,1.574]
[1756069557265,1.3809,4757.6,4756.6,5.3573]
[1756069557468,1.3809,4757.6,4756.6,2.1495]
[1756069557665,1.3809,4757.6,4756.7,22.07]
[1756069558359,0.2524,4757.6,4756.7,22.07]
[1756069559761,1.3907,4757.6,4756.6,2.1495]
[1756069559966,1.3907,4757.6,4755.9,3.2078]
[1756069559967,1.3916,4757.2,4756.0,24.1988]
[1756069560362,3.2078,4757.5,4756.4,3.2078]
[1756069560557,3.2078,4757.5,4756.5,3.6212]
[1756069560764,3.2078,4758.5,4757.4,3.2078]
[1756069561059,0.2533,4759.1,4757.5,24.82923496]
[1756069561262,0.2533,4759.1,4758.4,3.6212]
[1756069561661,1.6092,4759.3,4758.5,3.2078]
[1756069561967,1.6092,4760.3,4759.0,3.2078]
[1756069562166,0.2533,4760.5,4759.6,3.6212]
[1756069562967,2.7475,4760.0,4758.9,1.1108]
[1756069563158,0.2533,4759.9,4758.9,1.1108]
[1756069563968,1.8625,4759.4,4758.5,1.1108]
[1756069564562,4.817,4760.2,4759.0,2.1278]
[1756069564865,1.1383,4761.3,4760.0,1.017]
[1756069565072,3.2078,4761.6,4760.6,1.017]
[1756069565264,3.2078,4763.0,4761.8,1.1108]
[1756069565465,1.6092,4763.4,4762.2,1.1108]
[1756069565661,30.271,4765.7,4762.2,1.1108]
[1756069565662,4.817,4764.0,4762.5,3.2078]
[1756069565969,3.2078,4764.5,4763.7,3.6212]
[1756069566165,3.2078,4765.1,4763.9,3.6212]
[1756069566565,3.2078,4765.1,4763.9,2.6042]
[1756069566566,1.6092,4764.9,4763.9,2.6042]
[1756069567071,27.6237,4765.4,4764.7,1.017]
[1756069567366,27.6237,4765.4,4765.0,3.2078]
[1756069567561,27.6237,4765.4,4765.3,1.1108]
[1756069567967,2.595,4765.3,4764.7,1.4934]
[1756069568163,2.595,4765.0,4764.3,3.2078]
[1756069568368,3.2078,4764.8,4763.3,1.1108]
[1756069568570,3.2078,4764.8,4762.7,5.812]
[1756069568762,1.1383,4764.5,4762.7,5.812]
[1756069568962,3.2078,4764.0,4762.7,2.6042]
[1756069569167,1.6092,4763.9,4762.7,2.6042]
[1756069569367,1.1383,4763.8,4762.7,1.1108]
[1756069569571,2.595,4763.4,4762.5,22.056]
[1756069569763,0.9858,4762.6,4762.0,3.2078]
[1756069569964,2.1241,4762.6,4761.6,30.259]
[1756069570270,0.9858,4762.1,4761.2,3.2078]
[1756069570476,2.595,4761.9,4761.2,3.2078]
[1756069570668,0.20695343,4762.9,4760.3,3.2078]
[1756069570669,2.595,4761.3,4760.3,3.2078]
[1756069570979,0.9858,4761.2,4760.0,30.259]
[1756069571178,2.7475,4761.1,4759.9,1.1108]
[1756069571372,0.9858,4761.0,4759.9,1.1108]
[1756069571670,0.9858,4760.8,4759.9,1.1108]
[1756069572678,3.2078,4760.4,4759.9,1.1108]
[1756069572868,1.6092,4760.2,4759.5,3.2078]
[1756069573074,3.2078,4760.4,4759.6,2.6042]
[1756069573378,1.6092,4761.0,4760.1,1.1108]
[1756069574571,0.9858,4761.1,4760.1,1.1108]
[1756069574875,3.2078,4761.5,4760.3,1.017]
[1756069575076,3.2078,4761.5,4760.4,2.6042]
[1756069575269,3.2078,4761.5,4760.5,1.1108]
[1756069575467,3.2078,4761.5,4760.6,2.6042]
[1756069575874,1.6092,4762.2,4761.4,1.4934]
[1756069575875,4.817,4762.2,4761.4,1.4934]
[1756069576479,2.7475,4762.0,4760.7,1.4934]
[1756069576671,2.7475,4762.0,4760.6,1.1108]
[1756069576672,2.595,4761.8,4760.6,1.1108]
[1756069576976,2.7475,4761.5,4760.4,3.2078]
[1756069577281,3.2078,4761.1,4760.1,1.4934]
[1756069577571,1.6092,4761.4,4760.5,1.1108]
[1756069577772,0.9858,4761.3,4760.5,1.1108]
[1756069578180,3.2078,4761.8,4760.8,1.017]
[1756069578381,1.6092,4761.6,4760.3,2.6042]
[1756069578574,0.9858,4761.5,4760.3,2.6042]
[1756069578879,0.9858,4761.5,4760.3,1.4934]
[1756069579075,3.2078,4761.8,4760.5,4.2248]
[1756069579274,3.2078,4761.8,4760.5,3.2078]
[1756069579470,3.2078,4761.8,4760.8,1.017]
[1756069579675,3.2078,4761.8,4761.0,1.1108]
[1756069579870,3.2078,4761.8,4761.2,1.4934]
[1756069580071,2.595,4762.8,4761.3,3.2078]
[1756069580380,3.2078,4763.0,4762.0,2.1278]
[1756069580680,1.6092,4763.5,4762.5,2.6042]
[1756069580881,3.2078,4763.9,4762.6,1.1108]
[1756069581081,3.2078,4763.9,4762.9,3.2078]
[1756069581380,3.2078,4763.9,4763.1,2.6042]
[1756069581979,0.9858,4763.6,4762.5,31.3638]
[1756069582177,2.595,4763.3,4762.5,30.253]
[1756069582376,2.595,4763.3,4762.0,3.2078]
[1756069582683,3.2078,4762.6,4761.1,1.4934]
[1756069582872,2.595,4762.5,4761.2,1.1108]
[1756069583070,3.7333,4762.5,4761.2,1.1108]
[1756069584478,3.2078,4762.6,4761.5,2.5104]
[1756069584680,3.2078,4762.6,4761.7,1.4934]
[1756069584875,3.2078,4762.6,4761.8,24.1678]
[1756069585072,4.1936,4763.1,4761.8,24.1678]
[1756069585880,2.595,4763.0,4761.8,24.1678]
[1756069586079,2.595,4763.0,4761.8,23.057]
[1756069586381,2.595,4763.0,4762.1,1.1108]
[1756069587378,3.2078,4763.1,4762.2,3.6212]
[1756069587678,3.2078,4763.1,4762.3,2.1135]
[1756069587883,3.2078,4763.1,4762.4,1.4987]
[1756069588079,3.2078,4763.1,4762.5,1.0659]
[1756069588283,3.2078,4763.9,4762.8,3.6122]
[1756069588478,5.6705,4764.6,4763.4,3.6122]
[1756069589076,5.6705,4764.6,4763.5,1.0659]
[1756069589484,30.248,4765.6,4764.0,3.6122]
[1756069589485,3.2078,4765.2,4764.0,3.6122]
[1756069589782,2.6458,4765.0,4764.2,1.0659]
[1756069589977,0.968,4764.6,4764.1,22.036]
[1756069590182,1.1511,4764.5,4764.1,22.036]
[1756069590488,2.4627,4765.1,4764.1,23.1019]
[1756069591083,3.2078,4765.3,4764.3,2.1135]
[1756069592181,3.2078,4765.3,4764.4,3.6122]
[1756069592389,3.479,4769.4,4764.4,3.6122]
[1756069592390,0.968,4766.4,4765.1,3.6122]
[1756069592583,0.968,4766.4,4765.0,3.2078]
[1756069592584,0.968,4766.4,4765.3,3.6122]
[1756069592778,0.968,4766.4,4765.3,2.5463]
[1756069592988,0.968,4766.4,4765.4,1.0659]
[1756069593391,0.968,4766.4,4765.5,1.4987]
[1756069593785,0.968,4766.4,4765.6,1.0659]
[1756069593981,3.2078,4766.5,4765.7,1.0476]
[1756069594691,0.968,4766.3,4765.0,23.0776]
[1756069594991,4.3561,4766.0,4765.0,23.0776]
[1756069595680,3.2078,4766.0,4765.0,23.0776]
[1756069595879,2.4627,4765.8,4764.2,1.0476]
[1756069596087,0.968,4764.5,4764.2,1.0659]
[1756069596384,1.4947,4764.6,4764.5,1.0659]
[1756069596586,1.4947,4764.6,4764.5,25.6362]
[1756069596787,0.968,4765.7,4764.8,2.1135]
[1756069596983,4.7025,4765.9,4764.9,2.5646]
[1756069598084,3.2078,4765.9,4764.8,3.6122]
[1756069598581,0.968,4765.1,4764.1,2.5646]
[1756069598781,2.4627,4764.4,4764.0,22.021]
[1756069598985,2.4627,4764.6,4764.0,23.0869]
[1756069599185,3.2078,4764.7,4764.0,24.5856]
[1756069599385,3.2078,4764.7,4764.0,23.5197]
[1756069599587,4.7025,4765.2,4764.2,1.0476]
[1756069599788,4.7025,4765.2,4764.3,1.4987]
[1756069599996,3.2078,4765.2,4764.4,1.0659]
[1756069600185,3.2078,4765.2,4764.5,1.0476]
[1756069600385,4.7025,4765.2,4764.4,1.0659]
[1756069600590,0.968,4764.9,4764.0,22.021]
[1756069600792,3.2078,4764.6,4764.0,22.021]
[1756069601181,0.968,4764.5,4764.0,22.021]
[1756069601388,2.4627,4764.4,4764.0,23.0869]
[1756069601686,3.2078,4764.6,4764.1,1.0659]
[1756069601888,3.2078,4764.6,4764.2,3.6122]
[1756069602085,2.4627,4765.0,4764.4,1.0659]
[1756069602487,2.4627,4765.0,4764.0,22.021]
[1756069602888,2.4627,4765.0,4764.1,3.6122]
[1756069603491,2.4627,4765.0,4763.5,1.0659]
[1756069603492,3.611,4764.5,4763.5,1.0659]
[1756069603688,3.611,4764.5,4762.9,5.7541]
[1756069603689,2.4627,4764.0,4762.9,5.7541]
[1756069604091,1.4947,4764.0,4762.9,5.7541]
[1756069604288,3.2078,4763.6,4763.1,2.5463]
[1756069604485,3.2078,4763.6,4763.3,2.5646]
[1756069604690,3.2078,4764.7,4763.4,3.2078]
[1756069604885,3.2078,4764.7,4763.5,3.6122]
[1756069605192,3.2078,4764.7,4763.4,5.87456469]
[1756069605193,3.2078,4764.7,4763.7,1.0476]
[1756069605392,2.4627,4764.6,4763.8,2.5646]
[1756069605592,3.2078,4764.1,4763.2,2.5646]
[1756069605786,3.611,4764.0,4763.2,1.0659]
[1756069605988,0.968,4763.5,4763.0,22.013]